fUSD/lending_fUSD_20250220
["ID","MTS","AMOUNT","RATE_DAILY","PERIOD"]
[353847834,1740091840820,-8458.7041933,0.0001329,2]
[353847836,1740091840831,-258.235322,0.0001329,2]
[353847838,1740091840841,-151.0,0.0001329,2]
[353847840,1740091840853,-151.0,0.0001329,2]
[353847842,1740091840865,-151.0,0.0001329,2]
[353847844,1740091840875,-151.0,0.0001329,2]
[353847846,1740091840886,-151.0,0.0001329,2]
[353847848,1740091840898,-9582.5725051,0.00013291,2]
[353847851,1740091840908,-300.0,0.00013297,2]
[353847853,1740091840917,-666.0,0.00013297,2]
[353847855,1740091840928,-300.0,0.00013297,2]
[353847857,1740091840939,-666.0,0.00013297,2]
[353847860,1740091840949,-6189714.34781483,0.00013298,3]
[353847862,1740091840959,-151.0,0.00013298,2]
[353847864,1740091840969,-151.0,0.00013298,2]
[353847866,1740091840979,-151.0,0.00013298,2]
[353847868,1740091840989,-324.69686,0.00013298,2]
[353847871,1740091841000,-151.0,0.00013298,2]
[353847873,1740091841011,-151.0,0.00013298,2]
[353847875,1740091841021,-151.0,0.00013298,2]
[353847877,1740091841032,-151.0,0.00013298,2]
[353847879,1740091841041,-151.0,0.00013299,2]
[353847881,1740091841052,-151.0,0.00013299,2]
[353847883,1740091841062,-1761.8,0.00013299,2]
[353847885,1740091841072,-218.093804,0.00013299,2]
[353847887,1740091841082,-241.122614,0.00013299,2]
[353847890,1740091841093,-151.0,0.00013299,2]
[353847892,1740091841104,-151.0,0.00013299,2]
[353847894,1740091841114,-151.0,0.00013299,2]
[353847896,1740091841125,-151.0,0.00013299,2]
[353847898,1740091841135,-151.0,0.00013299,2]
[353847900,1740091841146,-151.0,0.00013299,2]
[353847902,1740091841156,-300.0,0.00013299,2]
[353847904,1740091841166,-666.0,0.00013299,2]
[353847906,1740091841177,-300.0,0.00013299,2]
[353847908,1740091841187,-1375023.84347904,0.000133,2]
[353847910,1740091841197,-5007.93965,0.000133,2]
[353847913,1740091841208,-162.386158,0.000133,2]
[353847915,1740091841219,-151.0,0.000133,2]
[353847917,1740091841229,-151.0,0.000133,2]
[353847919,1740091841240,-151.0,0.000133,2]
[353847921,1740091841250,-266.328155,0.000133,2]
[353847923,1740091841261,-151.0,0.000133,2]
[353847925,1740091841272,-172.448178,0.000133,2]
[353847928,1740091841282,-151.0,0.000133,2]
[353847930,1740091841292,-151.0,0.000133,2]
[353847932,1740091841303,-151.0,0.000133,2]
[353847934,1740091841313,-151.0,0.000133,2]
[353847936,1740091841324,-324.69686,0.000133,2]
[353847938,1740091841333,-167.484193,0.000133,2]
[353847940,1740091841343,-265.500814,0.000133,2]
[353847942,1740091841353,-151.0,0.000133,2]
[353847944,1740091841365,-151.0,0.000133,2]
[353847946,1740091841375,-1060.0,0.00013318,2]
[353847947,1740091841387,-4656.2,0.00013321,2]
[353847949,1740091841397,-2364.450144,0.00013324,2]
[353847951,1740091841408,-188.44351436,0.00013325,2]
[353847953,1740091841419,-25000.0,0.00013333,3]
[353847954,1740091841429,-942.62418231,0.00013342,2]
[353847956,1740091841440,-300.0,0.00013369,2]
[353847958,1740091841450,-666.0,0.00013369,2]
[353847960,1740091841461,-300.0,0.00013369,2]
[353847961,1740091841471,-2217.62183958,0.0001337,2]
[353847963,1740091841482,-21232.10055414,0.0001337,2]
[353847993,1740091841866,-1131.86393258,0.0001337,2]
[353847996,1740091841878,-9743.44710273,0.0001337,2]
[353847997,1740091841891,-21003.76938636,0.0001337,2]
[353848005,1740091841965,-399.86885598,0.00013298,3]
[353848007,1740091841977,-117.84133709,0.00013298,3]
[353848008,1740091841986,-4807.55866291,0.0001337,2]
[353848010,1740091841998,-1185.97544785,0.0001337,2]
[353848013,1740091842013,-765.72842568,0.0001337,2]
[353848015,1740091842025,-5058.01401283,0.0001337,2]
[353848055,1740091843322,-502.52787948,0.0001337,2]
[353848056,1740091843343,-303.69364354,0.0001337,2]
[353848057,1740091843437,-339.7750123,0.0001337,2]
[353848058,1740091843457,-276.55256459,0.0001337,2]
[353848059,1740091843469,-940814.80854142,0.0001337,2]
[353848060,1740091843478,-445682.82053179,0.0001337,2]
[353848061,1740091843487,-151.0,0.0001337,2]
[353848062,1740091843497,-151.0,0.0001337,2]
[353848063,1740091843506,-151.0,0.0001337,2]
[353848064,1740091843515,-151.0,0.0001337,2]
[353848065,1740091843524,-151.0,0.0001337,2]
[353848066,1740091843534,-151.0,0.0001337,2]
[353848067,1740091843543,-216.782378,0.0001337,2]
[353848068,1740091843552,-151.0,0.0001337,2]
[353848069,1740091843561,-151.0,0.0001337,2]
[353848070,1740091843570,-151.0,0.0001337,2]
[353848071,1740091843579,-151.0,0.0001337,2]
[353848072,1740091843589,-151.0,0.0001337,2]
[353848073,1740091843598,-151.0,0.0001337,2]
[353848074,1740091843608,-324.69686,0.0001337,2]
[353848075,1740091843617,-324.69686,0.0001337,2]
[353848076,1740091843626,-151.0,0.0001337,2]
[353848077,1740091843635,-151.0,0.0001337,2]
[353848078,1740091843644,-151.0,0.0001337,2]
[353848079,1740091843654,-151.0,0.0001337,2]
[353848080,1740091843663,-200.0,0.000134,4]
[353848083,1740091843672,-203.11731611,0.000134,2]
[353848086,1740091843681,-4656.2,0.00013403,2]
[353848089,1740091843691,-1000.0,0.00013424,2]
[353848092,1740091843699,-942.62418231,0.00013425,2]
[353848095,1740091843708,-605.0,0.00013425,2]
[353848097,1740091843717,-1761.8,0.00013436,2]
[353848099,1740091843727,-942.62418231,0.00013479,2]
[353848101,1740091843736,-4656.2,0.00013486,2]
[353848103,1740091843745,-9583.47683327,0.000135,2]
[353848105,1740091843754,-1476.42,0.000135,2]
[353848107,1740091843763,-200.0,0.000135,5]
[353848109,1740091843772,-200.38,0.000135,2]
[353848111,1740091843781,-200.00425815,0.000135,3]
[353848113,1740091843791,-619.0,0.0001351,2]
[353848115,1740091843800,-200.0,0.00013514,2]
[353848117,1740091843809,-200.0,0.00013514,2]
[353848118,1740091843818,-200.0,0.00013514,2]
[353848119,1740091843827,-200.0,0.00013514,2]
[353848121,1740091843837,-200.0,0.00013514,2]
[353848123,1740091843851,-200.0,0.00013514,2]
[353848125,1740091843869,-200.0,0.00013514,2]
[353848127,1740091843884,-200.0,0.00013514,2]
[353848129,1740091843893,-200.0,0.00013514,2]
[353848130,1740091843902,-200.0,0.00013514,2]
[353848133,1740091843911,-200.0,0.00013514,2]
[353848134,1740091843920,-200.0,0.00013514,2]
[353848136,1740091843929,-200.0,0.00013514,2]
[353848139,1740091843938,-200.0,0.00013514,2]
[353848140,1740091843948,-200.0,0.00013514,2]
[353848142,1740091843957,-200.0,0.00013514,2]
[353848144,1740091843966,-200.0,0.00013514,2]
[353848146,1740091843975,-200.0,0.00013514,2]
[353848148,1740091843984,-200.0,0.00013514,2]
[353848150,1740091843993,-200.0,0.00013514,2]
[353848153,1740091844002,-200.0,0.00013514,2]
[353848154,1740091844011,-200.0,0.00013514,2]
[353848156,1740091844020,-200.0,0.00013514,2]
[353848159,1740091844030,-200.0,0.00013514,2]
[353848160,1740091844039,-212.0,0.00013514,2]
[353848163,1740091844049,-300.0,0.00013529,2]
[353848165,1740091844058,-300.0,0.00013529,2]
[353848166,1740091844067,-122106.59121489,0.0001353,2]
[353848168,1740091844075,-942.62418231,0.00013534,2]
[353848170,1740091844085,-335.29,0.00013561,2]
[353848172,1740091844094,-4656.2,0.00013568,2]
[353848174,1740091844104,-756.08491494,0.00013571,2]
[353848176,1740091844113,-8500.0,0.00013571,2]
[353848178,1740091844121,-1761.8,0.00013573,2]
[353848180,1740091844130,-151.0,0.00013573,2]
[353848182,1740091844139,-151.0,0.00013573,2]
[353848184,1740091844149,-324.69686,0.00013573,2]
[353848186,1740091844158,-151.0,0.00013573,2]
[353848188,1740091844168,-151.0,0.00013573,2]
[353848190,1740091844177,-584.26524368,0.00013578,2]
[353848192,1740091844186,-7890.30030734,0.00013578,2]
[353848194,1740091844196,-301.63219179,0.00013598,2]
[353848196,1740091844205,-62214.88116828,0.00013599,2]
[353848198,1740091844214,-151.0,0.00013599,2]
[353848200,1740091844223,-151.0,0.00013599,2]
[353848202,1740091844232,-151.0,0.00013599,2]
[353848204,1740091844242,-151.763777,0.00013599,2]
[353848206,1740091844251,-199827.73088351,0.000136,2]
[353848208,1740091844260,-137.79370165,0.000136,2]
[353848210,1740091844273,-442.39953051,0.000136,2]
[353848213,1740091844283,-4169.57496808,0.000136,2]
[353848214,1740091844292,-151.0,0.000136,2]
[353848216,1740091844301,-151.0,0.000136,2]
[353848219,1740091844311,-151.0,0.000136,2]
[353848220,1740091844320,-151.763777,0.000136,2]
[353848223,1740091844329,-151.0,0.000136,2]
[353848225,1740091844339,-2246.9716683,0.000136,2]
[353848430,1740091846297,-999.0,0.0001337,2]
[353848432,1740091846307,-1711.43378568,0.000136,2]
[353848434,1740091846317,-151.0,0.000136,2]
[353848435,1740091846327,-3958.40545394,0.000136,2]
[353848437,1740091846336,-3958.40545394,0.000136,2]
[353848439,1740091846346,-324.69686,0.000136,2]
[353848441,1740091846355,-3900.21081745,0.000136,2]
[353848447,1740091846403,-58.19463649,0.000136,2]
[353848449,1740091846413,-1288.40899539,0.000136,2]
[353848463,1740091846544,-783.47211072,0.000136,2]
[353848465,1740091846555,-978.51692999,0.000136,2]
[353849557,1740092617949,249.15,0.00013918,30]
[353849558,1740092875632,345.84,8.767e-05,2]
[353849569,1740093031450,-500.0,0.00010174,2]
[353849570,1740093031460,-500.0,0.00010174,2]
[353849571,1740093031470,-509.59,0.00010551,2]
[353849572,1740093031480,-153.0,0.00011462,2]
[353849573,1740093031489,-153.0,0.00011462,2]
[353849574,1740093031499,-153.0,0.00011462,2]
[353849575,1740093031508,-153.0,0.00011462,2]
[353849576,1740093031518,-153.0,0.00011462,2]
[353849577,1740093031527,-153.0,0.00011462,2]
[353849578,1740093031536,-153.0,0.00011462,2]
[353849579,1740093031546,-153.0,0.00011462,2]
[353849580,1740093031556,-153.0,0.00011462,2]
[353849581,1740093031566,-302.78,0.00011642,2]
[353849582,1740093031575,-300.0,0.00011999,2]
[353849583,1740093031585,-1411.5104055,0.00012,3]
[353849584,1740093031594,-1000.0,0.00012054,2]
[353849585,1740093031604,-265.96,0.00012215,2]
[353849586,1740093031614,-224.52,0.00012261,2]
[353849587,1740093031623,-1000.0,0.0001228,2]
[353849588,1740093031635,-165.14,0.00012297,2]
[353849589,1740093031645,-1000.0,0.00012328,2]
[353849590,1740093031655,-203.9,0.000125,2]
[353849591,1740093031666,-191.8,0.00012544,2]
[353849592,1740093031678,-500.0,0.00012548,2]
[353849593,1740093031688,-150.70845741,0.00012575,2]
[353849594,1740093031699,-150.0,0.00012575,2]
[353849595,1740093031709,-1000.0,0.00012602,2]
[353849596,1740093031718,-509.59,0.00012815,2]
[353849597,1740093031729,-1000.0,0.00012876,2]
[353849598,1740093031748,-500.0,0.00012892,2]
[353849599,1740093031759,-500.0,0.00012914,2]
[353849600,1740093031769,-500.0,0.00012914,2]
[353849601,1740093031778,-1408.896,0.00012992,2]
[353849602,1740093031788,-392.76007596,0.00013096,2]
[353849603,1740093031798,-150.0,0.00013096,2]
[353849604,1740093031808,-1000.0,0.0001315,2]
[353849605,1740093031817,-420.0,0.00013172,2]
[353849606,1740093031827,-392.76007596,0.00013178,2]
[353849607,1740093031836,-690.84941985,0.00013197,2]
[353849608,1740093031845,-520.52859039,0.00013228,2]
[353849609,1740093031855,-392.76007596,0.00013233,2]
[353849610,1740093031865,-392.76007596,0.00013288,2]
[353849612,1740093031874,-1000.0,0.00013299,2]
[353849614,1740093031884,-5007.93965,0.000133,2]
[353849615,1740093031893,-46219.89839955,0.000133,2]
[353849617,1740093031903,-214.7619771,0.00013328,2]
[353849619,1740093031912,-392.76007596,0.00013342,2]
[353849621,1740093031921,-3194.16164548,0.00013369,2]
[353849623,1740093031930,-500.0,0.00013424,2]
[353849625,1740093031940,-617.32670405,0.00013424,2]
[353849627,1740093031949,-1000.0,0.00013424,2]
[353849629,1740093031958,-392.76007596,0.00013425,2]
[353849631,1740093031967,-550.0,0.0001344,2]
[353849633,1740093031977,-1264.13664,0.0001346,2]
[353849635,1740093031986,-392.76007596,0.00013479,2]
[353849637,1740093031995,-392.76007596,0.00013534,2]
[353849640,1740093032005,-251.47,0.00013561,2]
[353849641,1740093032014,-2682.7219641,0.00013589,2]
[353849644,1740093032023,-698.77370415,0.00013589,2]
[353849646,1740093032033,-1340.3818977,0.00013589,2]
[353849648,1740093032043,-1000.0,0.00013597,2]
[353849650,1740093032053,-200.0,0.000136,2]
[353849652,1740093032063,-400.0,0.000136,4]
[353849654,1740093032073,-392.76007596,0.00013616,2]
[353849656,1740093032083,-1028.94967469,0.0001364,2]
[353849658,1740093032092,-1095.24546524,0.0001364,2]
[353849660,1740093032102,-1050.56769061,0.0001364,2]
[353849662,1740093032111,-1042.08076979,0.0001364,2]
[353849664,1740093032120,-1216.04468817,0.0001364,2]
[353849666,1740093032129,-392.76007596,0.00013671,2]
[353849668,1740093032138,-500.0,0.00013696,2]
[353849670,1740093032147,-2134.09,0.00013696,2]
[353849672,1740093032156,-500.0,0.00013696,2]
[353849674,1740093032166,-152.77984098,0.00013696,2]
[353849676,1740093032175,-500.0,0.00013696,2]
[353849678,1740093032185,-469.23866742,0.00013696,2]
[353849680,1740093032194,-500.0,0.00013696,2]
[353849682,1740093032204,-500.0,0.00013696,2]
[353849684,1740093032213,-347.8831974,0.00013696,2]
[353849686,1740093032223,-2552.75213974,0.00013697,2]
[353849688,1740093032236,-408.52615629,0.00013697,2]
[353849690,1740093032247,-74070.386682,0.00013697,2]
[353849693,1740093032258,-614.72573488,0.00013697,2]
[353849695,1740093032272,-7856.97850683,0.00013697,2]
[353849697,1740093032283,-413.87648906,0.00013697,2]
[353849699,1740093032296,-636.7682,0.00013697,2]
[353849701,1740093032315,-941.96454601,0.00013697,2]
[353849705,1740093032339,-184072.15706002,0.00013697,2]
[353849707,1740093032348,-78578.81886561,0.00013697,2]
[353849709,1740093032358,-1000.0,0.00013698,2]
[353849711,1740093032367,-1000.19881198,0.00013698,2]
[353849713,1740093032377,-4871.30390476,0.00013698,2]
[353849715,1740093032386,-504.11715408,0.00013698,2]
[353849717,1740093032396,-1000.0,0.00013698,2]
[353849719,1740093032406,-500.0,0.00013698,2]
[353849721,1740093032416,-500.0,0.00013698,2]
[353849723,1740093032424,-500.0,0.00013698,2]
[353849725,1740093032434,-500.0,0.00013698,2]
[353849727,1740093032443,-500.0,0.00013698,2]
[353849729,1740093032452,-500.0,0.00013698,2]
[353849731,1740093032463,-500.0,0.00013698,2]
[353849733,1740093032473,-500.0,0.00013698,2]
[353849735,1740093032482,-500.0,0.00013698,2]
[353849737,1740093032491,-500.0,0.00013698,2]
[353849739,1740093032500,-338.63514027,0.00013698,2]
[353849741,1740093032509,-520.15403221,0.00013698,2]
[353849743,1740093032518,-1669.81,0.00013698,2]
[353849745,1740093032528,-1669.81,0.00013698,2]
[353849747,1740093032537,-1669.81,0.00013698,2]
[353849749,1740093032546,-1669.81,0.00013698,2]
[353849751,1740093032555,-1669.81,0.00013698,2]
[353849753,1740093032564,-1669.81,0.00013698,2]
[353849755,1740093032574,-1669.81,0.00013698,2]
[353849757,1740093032584,-1669.81,0.00013698,2]
[353849759,1740093032593,-1669.81,0.00013698,2]
[353849761,1740093032603,-1669.81,0.00013698,2]
[353849763,1740093032613,-1669.81,0.00013698,2]
[353849765,1740093032623,-1669.81,0.00013698,2]
[353849767,1740093032633,-1669.81,0.00013698,2]
[353849769,1740093032643,-1669.81,0.00013698,2]
[353849771,1740093032652,-1669.81,0.00013698,2]
[353849774,1740093032662,-1669.81,0.00013698,2]
[353849776,1740093032672,-1669.81,0.00013698,2]
[353849778,1740093032681,-1669.81,0.00013698,2]
[353849780,1740093032691,-1669.81,0.00013698,2]
[353849781,1740093032700,-1669.81,0.00013698,2]
[353849783,1740093032709,-1669.81,0.00013698,2]
[353849785,1740093032719,-1669.81,0.00013698,2]
[353849787,1740093032729,-1669.81,0.00013698,2]
[353849790,1740093032738,-1669.91310111,0.00013698,2]
[353849791,1740093032748,-500.0,0.00013699,2]
[353849793,1740093032757,-500.0,0.00013699,2]
[353849796,1740093032767,-500.0,0.00013699,2]
[353849798,1740093032776,-500.0,0.00013699,2]
[353849800,1740093032786,-500.0,0.00013699,2]
[353849802,1740093032795,-500.0,0.00013699,2]
[353849804,1740093032804,-500.0,0.00013699,2]
[353849806,1740093032814,-500.0,0.00013699,2]
[353849808,1740093032824,-151.0,0.00013699,2]
[353849810,1740093032834,-320.95062903,0.00013699,2]
[353849812,1740093032843,-4000.0,0.00013699,2]
[353849814,1740093032852,-1553.0,0.00013699,2]
[353849816,1740093032862,-200.0,0.00013699,2]
[353849818,1740093032870,-500.0,0.00013699,2]
[353849820,1740093032880,-22693.55,0.00013699,2]
[353849822,1740093032891,-518.92,0.00013699,2]
[353849824,1740093032900,-10047.88,0.00013699,2]
[353849826,1740093032909,-10623.43,0.00013699,2]
[353849828,1740093032919,-5132.94,0.00013699,2]
[353849830,1740093032929,-5132.94,0.00013699,2]
[353849832,1740093032939,-5132.94,0.00013699,2]
[353849834,1740093032948,-5132.94,0.00013699,2]
[353849836,1740093032958,-5132.94,0.00013699,2]
[353849838,1740093032967,-5132.94,0.00013699,2]
[353849840,1740093032976,-5132.94,0.00013699,2]
[353849842,1740093032985,-5132.94,0.00013699,2]
[353849844,1740093032994,-5132.94,0.00013699,2]
[353849846,1740093033003,-5132.94,0.00013699,2]
[353849848,1740093033013,-5132.94,0.00013699,2]
[353849850,1740093033023,-5132.94,0.00013699,2]
[353849852,1740093033032,-5132.94,0.00013699,2]
[353849854,1740093033043,-5132.94,0.00013699,2]
[353849856,1740093033052,-5132.94,0.00013699,2]
[353849858,1740093033062,-5132.94,0.00013699,2]
[353849860,1740093033072,-5132.94,0.00013699,2]
[353849862,1740093033082,-5132.94,0.00013699,2]
[353849864,1740093033092,-5132.94,0.00013699,2]
[353849866,1740093033101,-5133.0284812,0.00013699,2]
[353849868,1740093033111,-500.0,0.00013699,2]
[353849870,1740093033122,-500.0,0.00013699,2]
[353849872,1740093033131,-500.0,0.00013699,2]
[353849874,1740093033141,-563.27904912,0.00013699,2]
[353849876,1740093033150,-500.0,0.00013699,2]
[353849878,1740093033160,-500.0,0.000137,2]
[353849880,1740093033169,-650.0,0.000137,2]
[353849882,1740093033179,-1200.0,0.000137,2]
[353849884,1740093033188,-800.0,0.000137,5]
[353849886,1740093033198,-188.44351436,0.0001372,2]
[353849888,1740093033208,-392.76007596,0.00013726,2]
[353849890,1740093033217,-200.0,0.00013736,2]
[353849892,1740093033226,-265.96,0.00013742,2]
[353849894,1740093033236,-150.0,0.00013747,2]
[353849896,1740093033246,-5000.0,0.0001375,2]
[353849898,1740093033256,-1000.0,0.00013752,2]
[353849900,1740093033267,-152.1808486,0.0001377,2]
[353849902,1740093033277,-150.0,0.00013773,2]
[353849904,1740093033287,-150.0,0.00013774,2]
[353849906,1740093033296,-500.0,0.00013778,2]
[353849908,1740093033305,-500.0,0.00013778,2]
[353849910,1740093033315,-500.0,0.00013778,2]
[353849912,1740093033325,-2134.09,0.00013778,2]
[353849914,1740093033335,-500.0,0.00013778,2]
[353849916,1740093033345,-150.0,0.00013778,2]
[353849918,1740093033355,-49842.75405629,0.0001378,2]
[353849920,1740093033365,-150.0,0.00013782,2]
[353849922,1740093033375,-150.0,0.00013795,2]
[353849924,1740093033386,-2565.20798414,0.000138,4]
[353849926,1740093033396,-1300.0,0.000138,5]
[353849928,1740093033406,-150.0,0.00013801,2]
[353849930,1740093033415,-150.0,0.00013806,2]
[353849932,1740093033426,-392.76007596,0.00013808,2]
[353849934,1740093033435,-1000.0,0.00013816,2]
[353849936,1740093033445,-94168.96174474,0.0001385,2]
[353849939,1740093033455,-500.0,0.0001386,2]
[353849940,1740093033465,-2134.09,0.0001386,2]
[353849943,1740093033475,-500.0,0.0001386,2]
[353849945,1740093033485,-201.91527975,0.00013861,2]
[353849947,1740093033496,-150.0,0.00013862,2]
[353849949,1740093033506,-150.0,0.00013864,2]
[353849951,1740093033516,-400.0,0.0001387,2]
[353849953,1740093033527,-486.50725061,0.0001387,2]
[353849954,1740093033537,-400.0,0.0001387,2]
[353849960,1740093033739,-700.0,0.0001387,2]
[353849962,1740093033749,-1352.64558398,0.0001387,2]
[353849964,1740093033759,-200.0,0.00013873,2]
[353849966,1740093033768,-150.0,0.00013883,2]
[353849968,1740093033777,-55555.0,0.0001389,2]
[353849970,1740093033787,-890.0,0.000139,2]
[353849972,1740093033796,-203.11731611,0.000139,2]
[353849974,1740093033805,-10025.43163433,0.000139,2]
[353849976,1740093033814,-120084.8882177,0.000139,2]
[353849979,1740093033946,-57575.30792511,0.000139,2]
[353849980,1740093033955,-66096.39975302,0.000139,2]
[353849981,1740093033964,-3370.87,0.000139,2]
[353849983,1740093033973,-747.0,0.000139,2]
[353849985,1740093033983,-1700.0,0.000139,5]
[353849987,1740093033992,-232.0,0.000139,2]
[353849989,1740093034002,-367.0,0.000139,2]
[353849992,1740093034012,-150.0,0.00013908,2]
[353849993,1740093034021,-1000.0,0.00013918,2]
[353849995,1740093034030,-1000.0,0.00013918,2]
[353849997,1740093034039,-1000.0,0.00013918,2]
[353849999,1740093034048,-1000.0,0.00013918,2]
[353850001,1740093034058,-1000.0,0.00013918,2]
[353850003,1740093034067,-1000.0,0.00013918,2]
[353850005,1740093034076,-1000.0,0.00013918,2]
[353850007,1740093034085,-1000.0,0.00013918,2]
[353850009,1740093034095,-1000.0,0.00013918,2]
[353850011,1740093034104,-1000.0,0.00013918,2]
[353850013,1740093034113,-13923.55553266,0.0001392,14]
[353850015,1740093034123,-257.25864217,0.00013922,2]
[353850017,1740093034133,-150.0,0.00013924,2]
[353850019,1740093034142,-150.0,0.00013937,2]
[353850021,1740093034152,-500.0,0.00013943,2]
[353850023,1740093034161,-2134.09,0.00013943,2]
[353850025,1740093034171,-500.0,0.00013943,2]
[353850027,1740093034181,-1003.95142585,0.00013944,2]
[353850029,1740093034190,-20000.0,0.00013944,2]
[353850031,1740093034200,-150.0,0.00013963,2]
[353850033,1740093034209,-400.0,0.0001397,2]
[353850035,1740093034219,-400.0,0.0001397,2]
[353850037,1740093034228,-700.0,0.0001397,2]
[353850039,1740093034238,-700.0,0.0001397,2]
[353850041,1740093034247,-400.0,0.0001397,2]
[353850043,1740093034257,-700.0,0.0001397,2]
[353850045,1740093034269,-992.39686363,0.00013972,2]
[353850047,1740093034279,-500.0,0.00013973,2]
[353850049,1740093034288,-1138.1558695,0.00013981,2]
[353850051,1740093034297,-150.0,0.00013984,2]
[353850053,1740093034307,-605.0,0.00013988,2]
[353850055,1740093034319,-300.0,0.00013989,2]
[353850057,1740093034329,-666.0,0.00013989,2]
[353850059,1740093034338,-1583.24,0.00013989,2]
[353850061,1740093034350,-45305.60175001,0.0001399,2]
[353850063,1740093034363,-1945.55950178,0.0001399,2]
[353850066,1740093034375,-534.159991,0.0001399,2]
[353850068,1740093034387,-1661.39843761,0.0001399,2]
[353850070,1740093034398,-108981.35603003,0.0001399,2]
[353850072,1740093034408,-54951.83985508,0.0001399,2]
[353850074,1740093034419,-697122.61382635,0.0001399,2]
[353850076,1740093034430,-320.09861389,0.0001399,2]
[353850079,1740093034441,-349.990002,0.0001399,2]
[353850081,1740093034452,-281.6899999,0.0001399,2]
[353850083,1740093034463,-4751.29720341,0.0001399,2]
[353850085,1740093034475,-2167.23122615,0.0001399,2]
[353850087,1740093034486,-7960.91580602,0.0001399,2]
[353850089,1740093034497,-503.82709526,0.0001399,2]
[353850092,1740093034508,-413.21193929,0.0001399,2]
[353850094,1740093034519,-1269.26778325,0.0001399,2]
[353850096,1740093034531,-3049.99998966,0.0001399,2]
[353850098,1740093034542,-66664.91945982,0.0001399,2]
[353850100,1740093034552,-364.41218712,0.0001399,3]
[353850102,1740093034562,-224046.98117451,0.0001399,2]
[353850104,1740093034571,-42105.25164251,0.0001399,2]
[353850123,1740093037513,-323.20347792,0.00013598,2]
[353850124,1740093037523,-1310.22303119,0.0001399,2]
[353850125,1740093037535,-604.88967802,0.0001399,2]
[353850126,1740093037546,-1921.952907,0.0001399,2]
[353850127,1740093037663,-801.0,0.0001399,2]
[353850128,1740093037674,-526.13278442,0.0001399,2]
[353850129,1740093037683,-437.86721558,0.0001399,2]
[353850130,1740093037705,-941.43031319,0.0001399,2]
[353850301,1740093039646,-744.96847343,0.0001399,2]
[353850304,1740093039658,-152.5449838,0.0001399,2]
[353850306,1740093039668,-406.34851828,0.00014,2]
[353850319,1740093039777,-293.65148172,0.00014,2]
[353850321,1740093039787,-2095.0,0.00014,2]
[353850323,1740093039796,-376.40608023,0.00014,4]
[353850325,1740093039807,-395.77096857,0.00014,4]
[353850327,1740093039817,-564.6057264,0.00014,2]
[353850329,1740093039828,-594.90947917,0.00014,2]
[353850331,1740093039839,-453.8784,0.00014,2]
[353850333,1740093039851,-4355.8626438,0.00014,2]
[353850336,1740093039861,-26401.95646889,0.00014,2]
[353850337,1740093039870,-3972.97472246,0.00014,2]
[353850340,1740093039880,-650.0,0.00014,2]
[353850342,1740093039889,-1086.7256,0.00014,2]
[353850344,1740093039899,-1086.7256,0.00014,2]
[353850346,1740093039908,-871.0462,0.00014,2]
[353850348,1740093039918,-871.0462,0.00014,2]
[353850350,1740093039927,-1195.1369,0.00014,2]
[353850352,1740093039937,-1195.1369,0.00014,2]
[353850354,1740093039946,-332.10101001,0.00014,3]
[353850356,1740093039955,-15738.0217783,0.00014,7]
[353850358,1740093039964,-2737.0,0.00014,3]
[353850360,1740093039974,-200.0,0.00014012,2]
[353850362,1740093039984,-1060.0,0.00014019,2]